bitfinex-derivatives/quotes_SOLF0:USTF0_20240918
["timestamp","ask_amount","ask_price","bid_price","bid_amount"]
[1726678134797,3.85465297,128.59,128.56,20.239]
[1726678135106,3.8879,128.6,128.56,18.8188]
[1726678135302,3.92195767,128.59,128.56,18.8188]
[1726678135999,3.92195767,128.59,128.57,3.8887]
[1726678137314,3.8876,128.61,128.57,3.8887]
[1726678137801,7.7055061,128.61,128.57,3.8887]
[1726678139509,3.8878,128.6,128.57,3.8887]
[1726678141312,3.8878,128.6,128.56,18.8189]
[1726678141505,3.8881,128.59,128.56,3.8889]
[1726678142209,3.98559361,128.58,128.56,3.8889]
[1726678143508,3.98559361,128.58,128.57,3.8887]
[1726678143707,2.8652,128.63,128.56,14.93]
[1726678144013,21.74219416,128.63,128.56,14.93]
[1726678144308,3.888,128.6,128.56,18.8188]
[1726678144504,3.97228543,128.6,128.56,14.93]
[1726678144709,3.887,128.63,128.59,3.8881]
[1726678144904,3.85866927,128.63,128.59,3.8881]
[1726678145104,1.5446,128.64,128.59,3.8881]
[1726678145710,3.8874,128.62,128.59,3.8881]
[1726678145901,7.86576912,128.62,128.59,3.8881]
[1726678146097,3.8874,128.62,128.59,3.8881]
[1726678146706,7.73777348,128.62,128.59,3.8881]
[1726678147701,7.73777348,128.62,128.57,14.93]
[1726678147908,3.85037348,128.62,128.57,14.93]
[1726678148212,3.887,128.63,128.6,3.8876]
[1726678148707,7.86186772,128.63,128.6,3.8876]
[1726678149107,3.8872,128.62,128.59,3.8879]
[1726678149413,3.97486772,128.63,128.59,3.8879]
[1726678149713,1.5446,128.64,128.59,3.8879]
[1726678149912,3.8875,128.61,128.58,3.8882]
[1726678150111,3.95385294,128.6,128.58,3.8882]
[1726678151821,7.84175294,128.6,128.57,3.8886]
[1726678153317,7.84175294,128.6,128.58,3.8883]
[1726678153318,3.95385294,128.6,128.58,3.8883]
[1726678153505,3.8876,128.61,128.58,3.8883]
[1726678154113,3.97711372,128.6,128.58,3.8883]
[1726678156013,3.97711372,128.6,128.58,13.4483]
[1726678157015,3.8883,128.59,128.55,1.4606]
[1726678157211,3.8883,128.59,128.56,13.4488]
[1726678157616,3.8883,128.59,128.57,9.56]
[1726678157821,7.87271548,128.6,128.57,9.56]
[1726678158013,9.56,128.61,128.56,3.8888]
[1726678158208,3.8879,128.6,128.56,13.4488]
[1726678160223,3.8879,128.6,128.57,3.8886]
[1726678160413,13.48528836,128.61,128.58,9.56]
[1726678160414,7.81288836,128.61,128.58,9.56]
[1726678161321,3.8878,128.6,128.58,9.56]
[1726678164126,3.8882,128.59,128.56,13.4488]
[1726678165618,3.8884,128.58,128.55,13.4491]
[1726678165821,3.8884,128.58,128.55,9.56]
[1726678166020,9.56,128.6,128.56,3.889]
[1726678166021,3.8882,128.59,128.56,3.889]
[1726678166617,3.8882,128.59,128.56,13.449]
[1726678168017,3.8882,128.59,128.57,3.8886]
[1726678168221,3.83968871,128.6,128.57,13.4486]
[1726678168222,7.72758871,128.6,128.57,13.4486]
[1726678168527,3.8879,128.6,128.57,13.4486]
[1726678168918,7.86710976,128.6,128.58,3.8884]
[1726678169123,3.8879,128.6,128.58,3.8884]
[1726678169426,3.8879,128.6,128.57,9.56]
[1726678169631,7.84220565,128.6,128.57,9.56]
[1726678169919,3.8883,128.59,128.57,13.4485]
[1726678174621,3.8883,128.59,128.57,9.56]
[1726678176325,3.8883,128.59,128.56,13.4488]
[1726678181828,3.8883,128.59,128.56,3.8888]
[1726678182128,3.8883,128.59,128.57,9.56]
[1726678188431,9.56,128.6,128.57,9.56]
[1726678188630,9.56,128.6,128.56,9.56]
[1726678189734,9.56,128.6,128.56,13.4489]
[1726678190831,3.8881,128.59,128.56,13.4489]
[1726678191325,3.8881,128.59,128.57,9.56]
[1726678191531,7.71203732,128.61,128.58,9.56]
[1726678191732,3.8877,128.61,128.58,9.56]
[1726678192129,7.70940511,128.61,128.58,9.56]
[1726678192339,7.70940511,128.61,128.58,13.4482]
[1726678194329,3.82170511,128.61,128.58,9.56]
[1726678194647,3.82170511,128.61,128.6,9.56]
[1726678194833,3.8871,128.63,128.6,13.4478]
[1726678195033,7.74780038,128.63,128.61,9.56]
[1726678197435,3.8872,128.62,128.61,9.56]
[1726678197637,9.56,128.62,128.58,9.56]
[1726678198233,3.83637324,128.62,128.57,9.56]
[1726678198440,9.56,128.6,128.56,9.56]
[1726678198739,13.4482,128.59,128.56,3.8888]
[1726678199044,13.4482,128.59,128.55,9.56]
[1726678199045,9.56,128.59,128.55,9.56]
[1726678199441,13.4482,128.59,128.55,13.4491]
[1726678200538,16.898394,128.61,128.55,13.4491]
[1726678200539,3.8879,128.6,128.56,3.8889]
[1726678200739,30.346294,128.6,128.56,3.8889]
[1726678201047,13.4479,128.6,128.57,9.56]
[1726678203641,9.56,128.6,128.57,9.56]
[1726678203844,3.8881,128.59,128.56,3.8889]
[1726678204248,3.8881,128.59,128.56,13.4489]
[1726678208851,13.4479,128.6,128.57,3.8886]
[1726678209047,26.45944991,128.61,128.57,3.8886]
[1726678209347,3.88149789,128.62,128.6,9.56]
[1726678209551,11.1046,128.64,128.6,9.56]
[1726678209955,3.8871,128.63,128.6,9.56]
[1726678210155,3.86325,128.62,128.6,9.56]
[1726678210360,3.86325,128.62,128.61,9.56]
[1726678211265,3.8872,128.62,128.6,9.56]
[1726678211461,3.8468764,128.61,128.6,9.56]
[1726678212665,16.89625422,128.63,128.6,9.56]
[1726678212666,20.78325422,128.63,128.6,13.4478]
[1726678212969,3.887,128.63,128.61,9.56]
[1726678213361,3.88927801,128.62,128.61,9.56]
[1726678214769,16.89535859,128.63,128.61,9.56]
[1726678214968,16.89535859,128.62,128.61,9.56]
[1726678215166,3.93790371,128.63,128.61,9.56]
[1726678215864,3.93790371,128.63,128.62,9.56]
[1726678216062,16.89535859,128.64,128.62,9.56]
[1726678216267,3.8864,128.65,128.62,9.56]
[1726678216467,11.1012,128.67,128.64,9.56]
[1726678216666,1.4564,128.68,128.65,9.56]
[1726678216872,18.34816092,128.68,128.65,9.56]
[1726678217072,16.89176092,128.67,128.65,13.446]
[1726678217272,3.8852,128.69,128.66,9.56]
[1726678217671,20.77419324,128.69,128.66,9.56]
[1726678217972,16.88899324,128.69,128.67,9.56]
[1726678218176,7.80266239,128.7,128.68,9.56]
[1726678218767,7.80266239,128.7,128.67,13.4456]
[1726678218973,24.69137422,128.7,128.67,13.4456]
[1726678220072,3.8852,128.69,128.66,3.8858]
[1726678220279,9.56,128.69,128.63,1.4409]
[1726678220571,26.44871183,128.69,128.65,9.56]
[1726678220777,20.77421183,128.68,128.65,13.4461]
[1726678220979,3.8855,128.68,128.65,13.4461]
[1726678221571,9.56,128.68,128.64,9.56]
[1726678221777,26.44896387,128.68,128.64,9.56]
[1726678221972,16.88896387,128.67,128.64,9.56]
[1726678222271,16.88896387,128.66,128.62,9.56]
[1726678222471,9.56,128.67,128.62,9.56]
[1726678222679,3.8861,128.66,128.63,13.4467]
[1726678223879,9.56,128.67,128.63,9.56]
[1726678224378,3.8856,128.68,128.66,9.56]
[1726678227175,20.77637912,128.69,128.67,9.56]
[1726678227382,3.8852,128.69,128.67,9.56]
[1726678228081,20.80566299,128.7,128.67,13.4455]
[1726678228283,3.91776239,128.7,128.67,9.56]
[1726678228478,3.8852,128.69,128.67,9.56]
[1726678228675,3.9082899,128.68,128.67,9.56]
[1726678228877,9.56,128.68,128.6,1.4433]
[1726678229180,3.8861,128.66,128.63,3.8867]
[1726678229978,7.75472367,128.66,128.63,3.8867]
[1726678230483,7.75472367,128.66,128.63,13.4467]
[1726678230884,3.86862367,128.66,128.64,13.4466]
[1726678231077,9.56,128.69,128.65,9.56]
[1726678231273,14.90776826,128.7,128.65,9.56]
[1726678231473,3.8854,128.68,128.65,13.4461]
[1726678231678,7.79127152,128.68,128.65,13.4461]
[1726678231875,3.8854,128.68,128.65,13.4461]
[1726678232075,3.8854,128.68,128.65,9.56]
[1726678232484,7.70843267,128.68,128.65,9.56]
[1726678232683,3.8857,128.67,128.65,9.56]
[1726678233392,3.80669824,128.66,128.65,9.56]
[1726678233987,3.8855,128.68,128.65,9.56]
[1726678234488,3.8857,128.67,128.65,9.56]
[1726678234689,3.94026083,128.68,128.65,9.56]
[1726678234890,9.56,128.69,128.65,9.56]
[1726678235386,3.8857,128.67,128.65,9.56]
[1726678235786,3.8855,128.68,128.65,9.56]
[1726678235989,3.84149183,128.69,128.67,9.56]
[1726678236183,11.0191,128.71,128.68,9.56]
[1726678236379,3.8849,128.7,128.69,9.56]
[1726678236580,7.74894538,128.7,128.69,9.56]
[1726678236787,3.86404538,128.7,128.69,9.56]
[1726678236988,16.88811553,128.72,128.69,9.56]
[1726678237195,16.88811553,128.72,128.71,9.56]
[1726678237391,12.6177,128.75,128.71,9.56]
[1726678237585,3.8844,128.72,128.7,9.56]
[1726678238190,3.8845,128.71,128.69,9.56]
[1726678238392,9.56,128.72,128.69,9.56]
[1726678238785,3.8848,128.7,128.69,9.56]
[1726678239090,3.8848,128.7,128.67,13.4455]
[1726678239091,7.73657696,128.7,128.67,13.4455]
[1726678240385,7.73657696,128.7,128.69,9.56]
[1726678241291,3.85177696,128.7,128.69,9.56]
[1726678241595,3.8846,128.71,128.69,9.56]
[1726678242390,3.8848,128.7,128.69,9.56]
[1726678242592,7.84195063,128.7,128.69,9.56]
[1726678243492,3.95715063,128.7,128.69,9.56]
[1726678243699,3.8846,128.71,128.69,9.56]
[1726678244688,3.8848,128.7,128.67,3.8856]
[1726678244893,3.97705171,128.69,128.68,9.56]
[1726678246390,3.8848,128.7,128.67,9.56]
[1726678247098,7.71053139,128.7,128.67,9.56]
[1726678251299,3.8851,128.69,128.67,9.56]
[1726678252891,3.8851,128.69,128.66,3.8858]
[1726678253200,3.8851,128.69,128.67,9.56]
[1726678253888,13.38573139,128.7,128.64,3.8863]
[1726678254102,13.38573139,128.7,128.63,1.4477]
[1726678254103,12.5398,128.7,128.65,9.56]
[1726678254802,3.8855,128.68,128.65,13.4462]
[1726678255201,9.56,128.68,128.64,9.56]
[1726678256002,3.8859,128.67,128.64,13.4466]
[1726678256395,3.886,128.66,128.64,9.56]
[1726678257107,16.4719779,128.7,128.65,9.56]
[1726678257405,6.9119779,128.7,128.68,9.56]
[1726678257705,9.3560779,128.7,128.68,9.56]
[1726678257899,5.4710779,128.7,128.68,9.56]
[1726678258295,3.8851,128.69,128.68,9.56]
[1726678258699,3.9321779,128.7,128.68,9.56]
[1726678258901,3.8845,128.71,128.69,9.56]
[1726678259200,9.56,128.72,128.69,9.56]
[1726678259899,3.001,128.74,128.7,9.56]
[1726678260099,3.001,128.74,128.71,9.56]
[1726678260293,3.89161029,128.77,128.73,9.56]
[1726678260496,3.89161029,128.77,128.74,9.56]
[1726678260702,3.89161029,128.77,128.75,9.56]
[1726678261604,7.77451029,128.77,128.75,9.56]
[1726678262206,7.77451029,128.77,128.65,1.4721]
[1726678262207,3.89161029,128.77,128.72,3.884]
[1726678262403,3.0574,128.78,128.73,9.56]
[1726678262807,3.883,128.76,128.73,9.56]
[1726678264205,3.8833,128.75,128.73,9.56]
[1726678265209,3.8833,128.75,128.65,157.0121]
[1726678265210,3.8836,128.74,128.72,9.56]
[1726678265409,9.56,128.75,128.71,9.56]
[1726678265715,9.56,128.74,128.69,9.56]
[1726678266008,3.8843,128.72,128.69,13.4451]
[1726678266208,3.8843,128.72,128.69,9.56]
[1726678267713,3.8843,128.72,128.7,9.56]
[1726678268212,3.8845,128.71,128.7,9.56]
[1726678268414,3.84971233,128.71,128.7,9.56]
[1726678268712,9.56,128.74,128.7,9.56]
[1726678269213,3.8843,128.72,128.7,9.56]
[1726678270110,9.56,128.76,128.71,9.56]
[1726678270311,27.14173,128.77,128.72,9.56]
[1726678270511,3.8837,128.74,128.7,3.8845]
[1726678270709,9.56,128.75,128.71,9.56]
[1726678271214,3.8838,128.74,128.71,9.56]
[1726678272910,3.8838,128.74,128.72,9.56]
[1726678273516,3.8834,128.75,128.73,9.56]
[1726678273712,6.98161298,128.78,128.74,9.56]
[1726678273913,3.8829,128.77,128.74,9.56]
[1726678274708,3.883,128.76,128.74,13.4435]
[1726678277016,3.8828,128.77,128.75,13.4432]
[1726678277224,3.92421298,128.78,128.75,9.56]
[1726678277421,16.13483227,128.79,128.76,13.4428]
[1726678277422,20.01703227,128.79,128.76,13.4428]
[1726678277624,1.464,128.81,128.78,9.56]
[1726678277824,19.05226835,128.83,128.79,9.56]
[1726678278120,3.8816,128.81,128.79,9.56]
[1726678278313,7.82399738,128.81,128.79,9.56]
[1726678278707,3.8818,128.8,128.78,13.4422]
[1726678278922,3.94239738,128.81,128.77,13.4425]
[1726678279111,3.882,128.8,128.77,9.56]
[1726678279319,13.45549339,128.8,128.76,9.56]
[1726678279517,9.56,128.8,128.76,9.56]
[1726678279921,3.8822,128.79,128.75,3.8831]
[1726678280115,14.92,128.82,128.75,3.8831]
[1726678280424,18.83414141,128.82,128.75,3.8831]
[1726678281234,16.12970358,128.81,128.74,18.8033]
[1726678281422,14.92,128.8,128.74,3.8833]
[1726678281725,31.04970358,128.8,128.74,3.8833]
[1726678282022,3.8828,128.77,128.74,3.8833]
[1726678282528,3.883,128.76,128.73,3.8837]
[1726678283632,3.8828,128.77,128.73,3.8837]
[1726678283830,16.12970358,128.79,128.74,14.92]
[1726678284223,1.4353,128.81,128.74,14.92]
[1726678284224,20.01230358,128.78,128.74,14.92]
[1726678284422,3.8826,128.78,128.74,18.8034]
[1726678284926,3.8827,128.77,128.74,18.8034]
[1726678285320,20.01240358,128.77,128.74,14.92]
[1726678285619,3.8827,128.77,128.74,14.92]
[1726678285925,32.48624991,128.81,128.73,14.92]
[1726678286124,16.13094991,128.8,128.73,14.92]
[1726678288024,3.8833,128.75,128.73,14.92]
[1726678288328,3.8833,128.75,128.72,3.884]
[1726678288624,1.4353,128.81,128.74,14.92]
[1726678289026,1.4353,128.81,128.74,18.8034]
[1726678289222,3.8828,128.77,128.74,18.8034]
[1726678290523,3.8828,128.77,128.74,14.92]
[1726678291428,3.8828,128.77,128.74,18.8034]
[1726678291629,3.883,128.76,128.74,18.8034]
[1726678291830,1.4353,128.81,128.75,3.8832]
[1726678292231,3.8822,128.79,128.76,14.92]
[1726678292823,3.91414141,128.82,128.76,14.92]
[1726678293028,19.05022159,128.83,128.76,14.92]
[1726678293523,22.90815549,128.83,128.76,14.92]
[1726678293935,3.8822,128.79,128.76,18.8027]
[1726678296033,22.90815549,128.83,128.77,18.8025]
[1726678296722,3.8818,128.8,128.77,18.8025]
[1726678297830,3.8821,128.79,128.77,14.92]
[1726678298631,3.8821,128.79,128.77,18.8026]
[1726678299728,3.8819,128.8,128.77,18.8026]
[1726678299927,3.8819,128.8,128.78,9.55]
[1726678303636,3.8819,128.8,128.78,13.4323]
[1726678303832,3.8815,128.81,128.79,9.55]
[1726678304137,20.01152159,128.81,128.8,9.55]
[1726678304334,3.81450815,128.81,128.8,9.55]
[1726678304535,3.8813,128.82,128.8,9.55]
[1726678304736,3.90891898,128.81,128.8,13.4317]
[1726678305043,3.90891898,128.81,128.8,9.55]
[1726678305338,25.68002159,128.83,128.79,9.55]
[1726678305738,29.53442594,128.83,128.79,9.55]
[1726678306332,3.8817,128.81,128.79,9.55]
[1726678306528,3.8817,128.81,128.8,9.55]
[1726678306737,19.98442594,128.83,128.8,9.55]
[1726678307029,19.98442594,128.83,128.81,9.55]
[1726678307641,23.86552594,128.83,128.81,9.55]
[1726678308334,16.13002159,128.83,128.82,9.55]
[1726678308735,7.80161361,128.84,128.82,9.55]
[1726678308941,3.8808,128.83,128.82,9.55]
[1726678309639,7.68790068,128.83,128.82,9.55]
[1726678309839,7.68790068,128.83,128.81,9.55]
[1726678310537,3.8811,128.82,128.81,9.55]
[1726678310733,9.55,128.85,128.79,3.8819]
[1726678310940,3.8813,128.82,128.8,9.55]
[1726678311136,3.8813,128.82,128.81,9.55]
[1726678312649,3.8818,128.8,128.77,3.8825]
[1726678312946,1.4737,128.86,128.73,155.38]
[1726678313244,9.55,128.81,128.77,9.55]
[1726678313951,13.39594468,128.81,128.77,9.55]
[1726678314746,13.39594468,128.81,128.78,9.55]
[1726678314747,3.8822,128.79,128.78,9.55]
[1726678316543,3.84594468,128.81,128.78,9.55]
[1726678316544,3.8818,128.8,128.78,9.55]
[1726678317243,3.95329862,128.79,128.78,9.55]
[1726678319053,7.83529862,128.79,128.78,9.55]
[1726678320959,3.95329862,128.79,128.78,9.55]
[1726678322247,3.95329862,128.79,128.78,13.4323]
[1726678322454,11.0923,128.83,128.78,9.55]
[1726678322649,11.0923,128.83,128.71,3.83704243]
[1726678322650,14.88522929,128.83,128.8,9.55]
[1726678322852,3.8814,128.81,128.8,9.55]
[1726678323550,3.8813,128.82,128.8,9.55]
[1726678323754,3.8813,128.82,128.81,9.55]
[1726678324551,7.67392929,128.83,128.81,9.55]
[1726678324751,3.881,128.83,128.81,9.55]
[1726678324955,3.881,128.83,128.82,9.55]
[1726678325154,3.8807,128.84,128.82,9.55]
[1726678325453,3.8807,128.84,128.76,4.3328]
[1726678325454,3.88711901,128.84,128.83,9.55]
[1726678325646,3.8804,128.85,128.83,9.55]
[1726678325852,3.82458642,128.85,128.84,9.55]
[1726678326652,16.12488044,128.86,128.84,9.55]
[1726678326854,3.8802,128.85,128.84,9.55]
[1726678327062,7.81276195,128.85,128.84,9.55]
[1726678327363,3.8802,128.85,128.84,9.55]
[1726678327752,7.73857733,128.85,128.84,9.55]
[1726678327947,3.85837733,128.85,128.83,18.7808]
[1726678328148,3.8801,128.86,128.83,18.7808]
[1726678328858,3.8801,128.86,128.83,14.9]
[1726678329062,3.8798,128.87,128.83,14.9]
[1726678329455,3.8798,128.87,128.84,3.8805]
[1726678329956,3.8798,128.87,128.84,18.7805]
[1726678330763,3.82252427,128.86,128.84,18.7805]
[1726678331858,3.82252427,128.86,128.84,14.9]
[1726678331859,7.70252427,128.86,128.84,14.9]
[1726678332161,3.88,128.86,128.84,14.9]
[1726678332549,7.84970873,128.86,128.84,14.9]
[1726678332956,3.8802,128.85,128.83,14.9]
[1726678337163,3.96970873,128.86,128.81,14.9]
[1726678337365,16.11876244,128.87,128.81,14.9]
[1726678337566,16.11876244,128.86,128.81,14.9]
[1726678337767,1.4765,128.86,128.81,14.9]
[1726678338069,5.26786243,128.86,128.81,14.9]
[1726678338268,1.4765,128.86,128.77,2.9477]
[1726678338469,1.4765,128.86,128.79,14.9]
[1726678338470,4.5596,128.86,128.79,14.9]
[1726678338671,3.8813,128.82,128.79,18.782]
[1726678338967,8.35096243,128.86,128.79,14.9]
[1726678339173,3.8813,128.82,128.79,18.782]
[1726678348476,8.35096243,128.86,128.79,14.9]
[1726678348675,23.25096243,128.86,128.79,14.9]
[1726678349782,3.8817,128.81,128.79,14.9]
[1726678349984,3.8817,128.81,128.8,9.55]
[1726678352382,9.55,128.82,128.74,2.8701]
[1726678352583,9.55,128.82,128.78,9.55]
[1726678352779,11.0648,128.81,128.75,3.8832]
[1726678352980,9.55,128.8,128.76,9.55]
[1726678353383,3.8826,128.78,128.76,9.55]
[1726678353584,7.76613671,128.78,128.76,9.55]
[1726678353787,3.8826,128.78,128.77,9.55]
[1726678354289,7.67806161,128.78,128.77,9.55]
[1726678358278,3.79546161,128.78,128.77,9.55]
[1726678358485,12.5743,128.81,128.77,9.55]
[1726678359879,3.8823,128.78,128.77,9.55]
[1726678360084,7.67194275,128.78,128.77,9.55]
[1726678361394,16.12760705,128.8,128.77,9.55]
[1726678361590,9.55,128.84,128.79,9.55]
[1726678362185,3.8816,128.81,128.74,4.5297]
[1726678362382,19.10799858,128.85,128.8,9.55]
[1726678362588,19.10799858,128.85,128.81,9.55]
[1726678363296,3.8811,128.82,128.81,9.55]
[1726678366206,12.5327,128.85,128.74,4.5297]
[1726678366499,9.55,128.84,128.8,9.55]
[1726678367905,3.8814,128.81,128.8,9.55]
[1726678368797,12.5327,128.85,128.8,9.55]
[1726678368798,3.8813,128.82,128.8,9.55]
[1726678369698,3.8813,128.82,128.8,13.4317]
[1726678369899,3.8813,128.82,128.81,9.55]
[1726678372312,3.881,128.83,128.81,9.55]
[1726678380028,3.881,128.83,128.81,13.4314]
[1726678380924,3.8807,128.84,128.81,9.55]
[1726678381120,12.5327,128.85,128.74,12.2966]
[1726678381325,12.5327,128.85,128.8,9.55]
[1726678381326,3.8814,128.82,128.8,9.55]
[1726678381529,12.5327,128.85,128.8,9.55]
[1726678382323,28.65454393,128.85,128.8,9.55]
[1726678383133,3.8814,128.81,128.8,9.55]
[1726678383926,3.8821,128.79,128.76,3.8826]
[1726678384228,7.82002246,128.79,128.77,9.55]
[1726678384424,3.8821,128.79,128.77,9.55]
[1726678384626,7.74097453,128.78,128.77,9.55]
[1726678384932,7.74097453,128.78,128.76,9.55]
[1726678384933,7.73203972,128.78,128.76,9.55]
[1726678385135,3.8826,128.77,128.75,9.55]
[1726678385827,3.83381244,128.76,128.75,9.55]
[1726678401040,3.8822,128.79,128.75,9.55]
[1726678401234,3.8822,128.79,128.78,9.55]
[1726678401439,7.69039149,128.79,128.78,9.55]
[1726678406340,7.69039149,128.79,128.72,1.4832]
[1726678406341,3.8824,128.78,128.77,9.55]
[1726678406740,3.8824,128.78,128.76,9.55]
[1726678406942,3.97924145,128.77,128.76,9.55]
[1726678407743,3.8823,128.79,128.76,13.4329]
[1726678407945,3.97224805,128.78,128.77,9.55]
[1726678413751,3.97224805,128.78,128.77,13.4326]
[1726678413953,9.55,128.84,128.77,9.55]
[1726678414254,28.65828084,128.85,128.8,9.55]
[1726678414453,3.8811,128.83,128.8,9.55]
[1726678414961,3.8811,128.83,128.8,13.4317]
[1726678415452,16.12558084,128.84,128.8,13.4317]
[1726678415653,28.65828084,128.85,128.8,13.4317]
[1726678415856,3.881,128.83,128.8,13.4317]
[1726678424459,3.8812,128.82,128.8,13.4317]
[1726678424964,16.12237422,128.84,128.8,13.4317]
[1726678425157,3.8811,128.83,128.8,13.4317]
[1726678426459,3.8812,128.82,128.8,13.4317]
[1726678426659,16.12237422,128.84,128.8,9.55]
[1726678426862,3.8813,128.82,128.8,9.55]
[1726678427356,3.8819,128.8,128.77,13.4325]
[1726678427666,9.55,128.83,128.77,13.4325]
[1726678427667,3.9496516,128.79,128.77,13.4325]
[1726678427855,9.55,128.81,128.77,9.55]
[1726678428362,3.8822,128.79,128.77,9.55]
[1726678428564,3.81226929,128.78,128.77,9.55]
[1726678428957,7.69456929,128.78,128.76,13.4328]
[1726678429158,3.8823,128.78,128.76,13.4328]
[1726678429355,20.00457422,128.79,128.76,13.4328]
[1726678429666,3.78779431,128.78,128.76,13.4328]
[1726678429861,3.78779431,128.78,128.77,9.55]
[1726678430564,7.67009431,128.78,128.77,9.55]
[1726678430764,7.78974976,128.78,128.76,9.55]
[1726678432566,3.8826,128.77,128.76,9.55]
[1726678433362,7.8583538,128.77,128.76,9.55]
[1726678433672,3.9757538,128.77,128.76,9.55]
[1726678434070,3.9757538,128.77,128.75,3.8832]
[1726678434372,3.8822,128.79,128.76,13.4329]
[1726678434568,3.8822,128.79,128.78,9.55]
[1726678434569,7.68115865,128.79,128.78,9.55]
[1726678436462,3.8823,128.78,128.72,1.4832]
[1726678436665,9.55,128.78,128.74,9.55]
[1726678436867,9.55,128.77,128.74,9.55]
[1726678437059,9.55,128.76,128.67,1.4484]
[1726678437268,9.55,128.76,128.72,9.55]
[1726678437666,3.8833,128.75,128.72,9.55]
[1726678437967,3.8833,128.75,128.73,9.55]
[1726678438272,9.55,128.77,128.73,9.55]
[1726678438773,9.55,128.77,128.74,9.55]
[1726678439666,3.8831,128.76,128.74,9.55]
[1726678440067,9.55,128.78,128.74,9.55]
[1726678440372,5.41293537,128.79,128.75,9.55]
[1726678440573,5.41293537,128.79,128.67,4.3483]
[1726678440574,5.41293537,128.79,128.77,9.55]
[1726678440767,3.8825,128.78,128.77,9.55]
[1726678441078,5.41293537,128.79,128.77,9.55]
[1726678441269,3.91863537,128.79,128.77,13.4325]
[1726678441463,5.3019,128.8,128.77,13.4325]
[1726678443671,3.7949794,128.79,128.78,3.8823]
[1726678444078,2.9568,128.84,128.79,3.8819]
[1726678444264,12.5068,128.84,128.8,9.55]
[1726678444772,1.4161,128.84,128.82,9.55]
[1726678444972,1.5299,128.85,128.82,9.55]
[1726678445178,3.8807,128.84,128.82,9.55]
[1726678445579,1.5299,128.85,128.82,9.55]
[1726678445875,3.8806,128.84,128.82,9.55]
[1726678450282,21.53159859,128.85,128.83,9.55]
[1726678451677,3.8805,128.84,128.82,13.431]
[1726678451875,17.65119859,128.85,128.82,9.55]
[1726678452072,16.12129859,128.84,128.82,9.55]
[1726678452279,3.8807,128.84,128.82,9.55]
[1726678453584,3.8807,128.84,128.82,13.4311]
[1726678454287,21.53160406,128.85,128.82,13.4311]
[1726678454591,16.12130406,128.85,128.83,13.4306]
[1726678454784,16.12130406,128.85,128.83,9.55]
[1726678454984,3.8805,128.85,128.83,9.55]
[1726678456690,7.67146243,128.86,128.84,9.55]
[1726678456890,7.67146243,128.86,128.85,9.55]
[1726678457687,3.79136243,128.86,128.85,9.55]
[1726678457992,3.8798,128.87,128.85,9.55]
[1726678458193,3.8798,128.87,128.86,9.55]
[1726678458895,7.78504271,128.87,128.86,9.55]
[1726678459700,3.90524271,128.87,128.86,9.55]
[1726678459895,9.55,128.91,128.86,9.55]
[1726678460091,3.8789,128.9,128.88,9.55]
[1726678460698,3.792233,128.92,128.91,3.8784]